{"text_format":"1","workbook":"xlsx","n_sheets":8,"sheets":["Data","Details","Static Changes","Change Selection","Entire At once","Definite Sheet","IF ELSE Statement","From Another Workbook"],"not_rendered":{"charts":0,"images":0,"macros":1,"external_links":0,"defined_names":0,"comments":0,"pivot_tables":0},"unopened":[],"bounds":{"document_bytes":16777216,"sheet_cells":100000,"rows_first":2000,"rows_last":500,"rows_between":2000,"halvings":0,"cell_chars":16384,"cell_head_chars":4096},"cells_cut":0,"cells_raw":0,"read":"whole","date_system":"1900"}

{"sheet":"Data","index":0,"n_rows":11,"n_cols":4,"rows_kept":11,"cut":false,"hidden":false,"merged":[[1,1,1,3]]}
[]
[null,"Excel VBA VLOOKUP in Another Worksheet"]
[]
[null,"Author Name","DOB","Famous for"]
[null,"Arthur Conan Doyle","May 22, 1859","Detective Fiction"]
[null,"Ian Fleming","1908-05-28","Spy fiction"]
[null,"Agatha Christie","September 15, 1890","Murder Mystery"]
[null,"Stephen King","1947-09-21","Horror Fiction"]
[null,"James Patterson","1947-03-22","Thriller"]
[null,"Kevin McClory","1924-06-08","Spy fiction"]
[null,"Charles Dickens","February 7, 1812","Novels"]

{"sheet":"Details","index":1,"n_rows":11,"n_cols":3,"rows_kept":11,"cut":false,"hidden":false,"merged":[[1,1,1,2]]}
[]
[null,"Information of Author"]
[]
[null,"Author Name","Birth Place"]
[null,"Arthur Conan Doyle","Edinburgh, United Kingdom"]
[null,"Agatha Christie","Torquay, United Kingdom"]
[null,"Kevin McClory","Dún Laoghaire, Ireland"]
[null,"James Patterson","New York, United States"]
[null,"Charles Dickens","Portsmouth, United Kingdom"]
[null,"Ian Fleming","London, England"]
[null,"Stephen King","Maine, United States"]

{"sheet":"Static Changes","index":2,"n_rows":11,"n_cols":15,"rows_kept":11,"cut":false,"hidden":false,"merged":[[1,1,1,4],[1,11,1,14]]}
[]
[null,"Using VLOOKUP for Static Change",null,null,null,null,null,null,null,null,null,">>> Do Yourself <<<"]
[]
[null,"Author Name","DOB","Famous for","Birth Place",null,null,null,null,null,null,"Author Name","DOB","Famous for","Birth Place"]
[null,"Arthur Conan Doyle","May 22, 1859","Detective Fiction",{"$f":"VLOOKUP(B5,Details!$B:$C,2,0)","v":"Edinburgh, United Kingdom"},null,null,null,null,null,null,"Arthur Conan Doyle","May 22, 1859","Detective Fiction"]
[null,"Ian Fleming","1908-05-28","Spy fiction",{"$f":"VLOOKUP(B6,Details!$B$5:$C$11,2,0)","v":"London, England"},null,null,null,null,null,null,"Ian Fleming","1908-05-28","Spy fiction"]
[null,"Agatha Christie","September 15, 1890","Murder Mystery",{"$f":"VLOOKUP(B7,Details!$B$5:$C$11,2,0)","v":"Torquay, United Kingdom"},null,null,null,null,null,null,"Agatha Christie","September 15, 1890","Murder Mystery"]
[null,"Stephen King","1947-09-21","Horror Fiction",{"$f":"VLOOKUP(B8,Details!$B$5:$C$11,2,0)","v":"Maine, United States"},null,null,null,null,null,null,"Stephen King","1947-09-21","Horror Fiction"]
[null,"James Patterson","1947-03-22","Thriller",{"$f":"VLOOKUP(B9,Details!$B$5:$C$11,2,0)","v":"New York, United States"},null,null,null,null,null,null,"James Patterson","1947-03-22","Thriller"]
[null,"Kevin McClory","1924-06-08","Spy fiction",{"$f":"VLOOKUP(B10,Details!$B$5:$C$11,2,0)","v":"Dún Laoghaire, Ireland"},null,null,null,null,null,null,"Kevin McClory","1924-06-08","Spy fiction"]
[null,"Charles Dickens","February 7, 1812","Novels",{"$f":"VLOOKUP(B11,Details!$B$5:$C$11,2,0)","v":"Portsmouth, United Kingdom"},null,null,null,null,null,null,"Charles Dickens","February 7, 1812","Novels"]

{"sheet":"Change Selection","index":3,"n_rows":11,"n_cols":15,"rows_kept":11,"cut":false,"hidden":false,"merged":[[1,1,1,4],[1,11,1,14]]}
[]
[null,"Applying VLOOKUP for Change Selection",null,null,null,null,null,null,null,null,null,">>> Do Yourself <<<"]
[]
[null,"Author Name","DOB","Famous for","Birth Place",null,null,null,null,null,null,"Author Name","DOB","Famous for","Birth Place"]
[null,"Arthur Conan Doyle","May 22, 1859","Detective Fiction",{"$f":"VLOOKUP(B5,Details!$B$5:$C$11,2,0)","v":"Edinburgh, United Kingdom"},null,null,null,null,null,null,"Arthur Conan Doyle","May 22, 1859","Detective Fiction"]
[null,"Ian Fleming","1908-05-28","Spy fiction",{"$f":"VLOOKUP(B6,Details!$B$5:$C$11,2,0)","v":"London, England"},null,null,null,null,null,null,"Ian Fleming","1908-05-28","Spy fiction"]
[null,"Agatha Christie","September 15, 1890","Murder Mystery",{"$f":"VLOOKUP(B7,Details!$B$5:$C$11,2,0)","v":"Torquay, United Kingdom"},null,null,null,null,null,null,"Agatha Christie","September 15, 1890","Murder Mystery"]
[null,"Stephen King","1947-09-21","Horror Fiction",{"$f":"VLOOKUP(B8,Details!$B$5:$C$11,2,0)","v":"Maine, United States"},null,null,null,null,null,null,"Stephen King","1947-09-21","Horror Fiction"]
[null,"James Patterson","1947-03-22","Thriller",{"$f":"VLOOKUP(B9,Details!$B$5:$C$11,2,0)","v":"New York, United States"},null,null,null,null,null,null,"James Patterson","1947-03-22","Thriller"]
[null,"Kevin McClory","1924-06-08","Spy fiction",{"$f":"VLOOKUP(B10,Details!$B$5:$C$11,2,0)","v":"Dún Laoghaire, Ireland"},null,null,null,null,null,null,"Kevin McClory","1924-06-08","Spy fiction"]
[null,"Charles Dickens","February 7, 1812","Novels",{"$f":"VLOOKUP(B11,Details!$B$5:$C$11,2,0)","v":"Portsmouth, United Kingdom"},null,null,null,null,null,null,"Charles Dickens","February 7, 1812","Novels"]

{"sheet":"Entire At once","index":4,"n_rows":11,"n_cols":14,"rows_kept":11,"cut":false,"hidden":false,"merged":[[1,1,1,4],[1,10,1,13]]}
[]
[null,"Use of VLOOKUP to Change at Once",null,null,null,null,null,null,null,null,">>> Do Yourself <<<"]
[]
[null,"Author Name","DOB","Famous for","Birth Place",null,null,null,null,null,"Author Name","DOB","Famous for","Birth Place"]
[null,"Arthur Conan Doyle","May 22, 1859","Detective Fiction","Edinburgh, United Kingdom",null,null,null,null,null,"Arthur Conan Doyle","May 22, 1859","Detective Fiction"]
[null,"Ian Fleming","1908-05-28","Spy fiction","London, England",null,null,null,null,null,"Ian Fleming","1908-05-28","Spy fiction"]
[null,"Agatha Christie","September 15, 1890","Murder Mystery","Torquay, United Kingdom",null,null,null,null,null,"Agatha Christie","September 15, 1890","Murder Mystery"]
[null,"Stephen King","1947-09-21","Horror Fiction","Maine, United States",null,null,null,null,null,"Stephen King","1947-09-21","Horror Fiction"]
[null,"James Patterson","1947-03-22","Thriller","New York, United States",null,null,null,null,null,"James Patterson","1947-03-22","Thriller"]
[null,"Kevin McClory","1924-06-08","Spy fiction","Dún Laoghaire, Ireland",null,null,null,null,null,"Kevin McClory","1924-06-08","Spy fiction"]
[null,"Charles Dickens","February 7, 1812","Novels","Portsmouth, United Kingdom",null,null,null,null,null,"Charles Dickens","February 7, 1812","Novels"]

{"sheet":"Definite Sheet","index":5,"n_rows":11,"n_cols":14,"rows_kept":11,"cut":false,"hidden":false,"merged":[[1,1,1,4],[1,10,1,13]]}
[]
[null,"VLOOKUP for Particular Sheet",null,null,null,null,null,null,null,null,">>> Do Yourself <<<"]
[]
[null,"Author Name","DOB","Famous for","Birth Place",null,null,null,null,null,"Author Name","DOB","Famous for","Birth Place"]
[null,"Arthur Conan Doyle","May 22, 1859","Detective Fiction","Edinburgh, United Kingdom",null,null,null,null,null,"Arthur Conan Doyle","May 22, 1859","Detective Fiction"]
[null,"Ian Fleming","1908-05-28","Spy fiction",{"$f":"VLOOKUP(B6,Details!$B$5:$C$11,2,0)","v":"London, England"},null,null,null,null,null,"Ian Fleming","1908-05-28","Spy fiction"]
[null,"Agatha Christie","September 15, 1890","Murder Mystery",{"$f":"VLOOKUP(B7,Details!$B$5:$C$11,2,0)","v":"Torquay, United Kingdom"},null,null,null,null,null,"Agatha Christie","September 15, 1890","Murder Mystery"]
[null,"Stephen King","1947-09-21","Horror Fiction",{"$f":"VLOOKUP(B8,Details!$B$5:$C$11,2,0)","v":"Maine, United States"},null,null,null,null,null,"Stephen King","1947-09-21","Horror Fiction"]
[null,"James Patterson","1947-03-22","Thriller",{"$f":"VLOOKUP(B9,Details!$B$5:$C$11,2,0)","v":"New York, United States"},null,null,null,null,null,"James Patterson","1947-03-22","Thriller"]
[null,"Kevin McClory","1924-06-08","Spy fiction",{"$f":"VLOOKUP(B10,Details!$B$5:$C$11,2,0)","v":"Dún Laoghaire, Ireland"},null,null,null,null,null,"Kevin McClory","1924-06-08","Spy fiction"]
[null,"Charles Dickens","February 7, 1812","Novels",{"$f":"VLOOKUP(B11,Details!$B$5:$C$11,2,0)","v":"Portsmouth, United Kingdom"},null,null,null,null,null,"Charles Dickens","February 7, 1812","Novels"]

{"sheet":"IF ELSE Statement","index":6,"n_rows":11,"n_cols":14,"rows_kept":11,"cut":false,"hidden":false,"merged":[[1,1,1,4],[1,10,1,13]]}
[]
[null,"Using If, Else Statement ",null,null,null,null,null,null,null,null,">>> Do Yourself <<<"]
[]
[null,"Author Name","DOB","Famous for","Birth Place",null,null,null,null,null,"Author Name","DOB","Famous for","Birth Place"]
[null,"Arthur Conan Doyle","May 22, 1859","Detective Fiction","Edinburgh, United Kingdom",null,null,null,null,null,"Arthur Conan Doyle","May 22, 1859","Detective Fiction"]
[null,"Ian Fleming","1908-05-28","Spy fiction",{"$f":"VLOOKUP(B6,Details!$B$5:$C$11,2,0)","v":"London, England"},null,null,null,null,null,"Ian Fleming","1908-05-28","Spy fiction"]
[null,"Agatha Christie","September 15, 1890","Murder Mystery",{"$f":"VLOOKUP(B7,Details!$B$5:$C$11,2,0)","v":"Torquay, United Kingdom"},null,null,null,null,null,"Agatha Christie","September 15, 1890","Murder Mystery"]
[null,"Stephen King","1947-09-21","Horror Fiction",{"$f":"VLOOKUP(B8,Details!$B$5:$C$11,2,0)","v":"Maine, United States"},null,null,null,null,null,"Stephen King","1947-09-21","Horror Fiction"]
[null,"James Patterson","1947-03-22","Thriller",{"$f":"VLOOKUP(B9,Details!$B$5:$C$11,2,0)","v":"New York, United States"},null,null,null,null,null,"James Patterson","1947-03-22","Thriller"]
[null,"Kevin McClory","1924-06-08","Spy fiction",{"$f":"VLOOKUP(B10,Details!$B$5:$C$11,2,0)","v":"Dún Laoghaire, Ireland"},null,null,null,null,null,"Kevin McClory","1924-06-08","Spy fiction"]
[null,"Charles Dickens","February 7, 1812","Novels",{"$f":"VLOOKUP(B11,Details!$B$5:$C$11,2,0)","v":"Portsmouth, United Kingdom"},null,null,null,null,null,"Charles Dickens","February 7, 1812","Novels"]

{"sheet":"From Another Workbook","index":7,"n_rows":11,"n_cols":5,"rows_kept":11,"cut":false,"hidden":false,"merged":[[1,1,1,4]]}
[]
[null,"Excel VBA VLOOKUP in Another Workbook"]
[]
[null,"Author Name","DOB","Famous for","Birth Place"]
[null,"Arthur Conan Doyle","May 22, 1859","Detective Fiction","Edinburgh, United Kingdom"]
[null,"Ian Fleming","1908-05-28","Spy fiction","London, England"]
[null,"Agatha Christie","September 15, 1890","Murder Mystery","Torquay, United Kingdom"]
[null,"Stephen King","1947-09-21","Horror Fiction","Maine, United States"]
[null,"James Patterson","1947-03-22","Thriller","New York, United States"]
[null,"Kevin McClory","1924-06-08","Spy fiction","Dún Laoghaire, Ireland"]
[null,"Charles Dickens","February 7, 1812","Novels","Portsmouth, United Kingdom"]